Workbook

Sheet Invoer data
A1: Datum | B1: Invoer | C1: Meterstand | D1: Verbruik | E1: Totaal | F1: # dagen | G1: Per dag | H1: Per week | I1: Per maand | J1: Per jaar | K1: Dagen | L1: # dagen | M1: Prognose 365 dagen | Q1: =_xlfn.DAYS(A1601,17-7-2021) -> 
A2: =NOW() -> 2021-08-23T18:26:37.650 | B2: =LARGE(B3:B1600,1) -> 551843 | C2: =LARGE(C3:C1600,1) -> 551.843 | D2: =SUM(D3:D1600)/1000 -> 9.503 | E2: =LARGE(E6:E1600,1) -> 9503 | F2: =LARGE(F6:F1600,1) -> 40 | G2: =D2/L2 -> 0.2389580214 | H2: =G2*7 -> 1.67270615 | I2: =G2*30.4375 -> 7.273284777 | J2: =G2*365.25 -> 87.27941732 | K2: =SUM(K3:K1600) -> 40 | L2: =A2-A3 -> 39.76849132 | M2: =C3+J2 -> 629.6194173
A3: 2021-07-15 | B3: 542340 | C3: =B3/1000 -> 542.34 | F3: 1 | K3: 1
A4: 2021-07-16 | B4: 542340 | C4: =B4/1000 -> 542.34 | D4: =B4-B3 -> 0 | F4: 2 | K4: 1
A5: 2021-07-17 | B5: 542645 | C5: =B5/1000 -> 542.645 | D5: 305 | E5: =D5 -> 305 | F5: 3 | G5: =(E5/F5)/1000 -> 0.1016666667 | H5: =G5*7 -> 0.7116666667 | I5: =G5*30.5 -> 3.100833333 | J5: =G5*365.25 -> 37.13375 | K5: =A5-A4 -> 1 | L5: =AVERAGE(J36:J82) -> 85.57653513 | M5: gemidd. jaar
A6: 2021-07-17 | B6: 542793 | C6: =B6/1000 -> 542.793 | D6: 148 | E6: =E5+D6 -> 453 | F6: =SUM($K$3:K6) -> 3 | G6: =(E6/F6)/1000 -> 0.151 | H6: =G6*7 -> 1.057 | I6: =G6*30.5 -> 4.6055 | J6: =G6*365.25 -> 55.15275 | K6: 0 | L6: =AVERAGE(D37:D83) -> 145.6382979 | M6: gemidd. dag
A7: 2021-07-17 | B7: 542800 | C7: 542.8 | D7: 7 | E7: =E6+D7 -> 460 | F7: =SUM($K$3:K7) -> 3 | G7: =(E7/F7)/1000 -> 0.1533333333 | H7: =G7*7 -> 1.073333333 | I7: =G7*30.5 -> 4.676666667 | J7: =G7*365.25 -> 56.005 | K7: 0
A8: 2021-07-17 | B8: 542816 | C8: 542.816 | D8: 16 | E8: =E7+D8 -> 476 | F8: =SUM($K$3:K8) -> 3 | G8: 0.1586666667 | H8: 1.110666667 | I8: 4.839333333 | J8: =G8*365.25 -> 57.953 | K8: 0
A9: 2021-07-17 | B9: 542818 | C9: 542.818 | D9: =B9-B8 -> 2 | E9: 478 | F9: =SUM($K$3:K9) -> 3 | G9: 0.1593333333 | H9: 1.115333333 | I9: 4.859666667 | J9: =G9*365.25 -> 58.1965 | K9: 0
A10: 2021-07-18 | B10: 542866 | C10: 542.866 | D10: 48 | E10: 526 | F10: =SUM($K$3:K10) -> 4 | G10: 0.1315 | H10: 0.9205 | I10: 4.01075 | J10: =G10*365.25 -> 48.030375 | K10: 1
A11: 2021-07-18 | B11: 542917 | C11: 542.917 | D11: 51 | E11: 577 | F11: =SUM($K$3:K11) -> 4 | G11: 0.14425 | H11: 1.00975 | I11: 4.399625 | J11: 52.6873125 | K11: 0
A12: 2021-07-18 | B12: 543028 | C12: 543.028 | D12: 111 | E12: 688 | F12: =SUM($K$3:K12) -> 4 | G12: 0.172 | H12: 1.204 | I12: 5.246 | J12: 62.823 | K12: 0
A13: 2021-07-18 | B13: 543048 | C13: 543.048 | D13: 20 | E13: 708 | F13: =SUM($K$3:K13) -> 4 | G13: 0.177 | H13: 1.239 | I13: 5.3985 | J13: 64.64925 | K13: 0
A14: 2021-07-18 | B14: 543099 | C14: 543.099 | D14: 51 | E14: 759 | F14: =SUM($K$3:K14) -> 4 | G14: 0.18975 | H14: 1.32825 | I14: 5.787375 | J14: 69.3061875 | K14: 0
A15: 2021-07-18 | B15: 543105 | C15: 543.105 | D15: 6 | E15: 765 | F15: =SUM($K$3:K15) -> 4 | G15: 0.19125 | H15: 1.33875 | I15: 5.833125 | J15: 69.8540625 | K15: 0
A16: 2021-07-18 | B16: 543123 | C16: 543.123 | D16: 18 | E16: 783 | F16: =SUM($K$3:K16) -> 4 | G16: 0.19575 | H16: 1.37025 | I16: 5.970375 | J16: 71.4976875 | K16: 0
A17: 2021-07-18 | B17: 543130 | C17: 543.13 | D17: 7 | E17: 790 | F17: =SUM($K$3:K17) -> 4 | G17: 0.1975 | H17: 1.3825 | I17: 6.02375 | J17: 72.136875 | K17: 0
A18: 2021-07-19 | B18: 543394 | C18: 543.394 | D18: 264 | E18: 1054 | F18: =SUM($K$3:K18) -> 5 | G18: 0.2108 | H18: 1.4756 | I18: 6.4294 | J18: 76.9947 | K18: 1
A19: 2021-07-20 | B19: 543487 | C19: 543.487 | D19: 93 | E19: 1147 | F19: =SUM($K$3:K19) -> 6 | G19: 0.1911666667 | H19: 1.338166667 | I19: 5.830583333 | J19: 69.823625 | K19: 1
A20: =A19 -> 2021-07-20 | B20: 543589 | C20: 543.589 | D20: 102 | E20: 1249 | F20: =SUM($K$3:K20) -> 6 | G20: 0.2081666667 | H20: 1.457166667 | I20: 6.349083333 | J20: 76.032875 | K20: 0
A21: 2021-07-20 | B21: 543746 | C21: 543.746 | D21: 157 | E21: 1406 | F21: =SUM($K$3:K21) -> 6 | G21: 0.2343333333 | H21: 1.640333333 | I21: 7.147166667 | J21: 85.59025 | K21: 0
A22: 2021-07-21 | B22: 543745 | C22: 543.745 | D22: -1 | E22: 1405 | F22: =SUM($K$3:K22) -> 7 | G22: 0.2007142857 | H22: 1.405 | I22: 6.121785714 | J22: 73.31089286 | K22: 1
A23: 2021-07-22 | B23: 543917 | C23: 543.917 | D23: 172 | E23: 1577 | F23: =SUM($K$3:K23) -> 8 | G23: 0.197125 | H23: 1.379875 | I23: 6.0123125 | J23: 71.99990625 | K23: 1
A24: 2021-07-22 | B24: 543919 | C24: 543.919 | D24: 2 | E24: 1579 | F24: =SUM($K$3:K24) -> 8 | G24: 0.197375 | H24: 1.381625 | I24: 6.0199375 | J24: 72.09121875 | K24: 0
A25: 2021-07-22 | B25: 543941 | C25: 543.941 | D25: 22 | E25: 1601 | F25: =SUM($K$3:K25) -> 8 | G25: 0.200125 | H25: 1.400875 | I25: 6.1038125 | J25: 73.09565625 | K25: 0
A26: 2021-07-23 | B26: 544023 | C26: 544.023 | D26: 82 | E26: 1683 | F26: =SUM($K$3:K26) -> 9 | G26: 0.187 | H26: 1.309 | I26: 5.7035 | J26: 68.30175 | K26: 1
A27: 2021-07-23 | B27: 544102 | C27: 544.102 | D27: 79 | E27: 1762 | F27: =SUM($K$3:K27) -> 9 | G27: 0.1957777778 | H27: 1.370444444 | I27: 5.971222222 | J27: 71.50783333 | K27: 0
A28: 2021-07-23 | B28: 544124 | C28: 544.124 | D28: 22 | E28: 1784 | F28: =SUM($K$3:K28) -> 9 | G28: 0.1982222222 | H28: 1.387555556 | I28: 6.045777778 | J28: 72.40066667 | K28: 0
A29: 2021-07-23 | B29: 544162 | C29: 544.162 | D29: 38 | E29: 1822 | F29: =SUM($K$3:K29) -> 9 | G29: 0.2024444444 | H29: 1.417111111 | I29: 6.174555556 | J29: 73.94283333 | K29: 0
A30: 2021-07-23 | B30: 544290 | C30: 544.29 | D30: 128 | E30: 1950 | F30: =SUM($K$3:K30) -> 9 | G30: 0.2166666667 | H30: 1.516666667 | I30: 6.608333333 | J30: 79.1375 | K30: 0
A31: 2021-07-24 | B31: 544519 | C31: 544.519 | D31: 229 | E31: 2179 | F31: =SUM($K$3:K31) -> 10 | G31: 0.2179 | H31: 1.5253 | I31: 6.64595 | J31: 79.587975 | K31: 1
A32: 2021-07-25 | B32: 544625 | C32: 544.625 | D32: =B32-B31 -> 106 | E32: 2285 | F32: =SUM($K$3:K32) -> 11 | G32: 0.2077272727 | H32: 1.454090909 | I32: 6.335681818 | J32: 75.87238636 | K32: 1
A33: =A32 -> 2021-07-25 | B33: 544680 | C33: 544.68 | D33: =B33-B32 -> 55 | E33: 2340 | F33: =SUM($K$3:K33) -> 11 | G33: 0.2127272727 | H33: 1.489090909 | I33: 6.488181818 | J33: 77.69863636 | K33: 0
A34: =A33 -> 2021-07-25 | B34: 544752 | C34: 544.752 | D34: 72 | E34: 2412 | F34: =SUM($K$3:K34) -> 11 | G34: 0.2192727273 | H34: 1.534909091 | I34: 6.687818182 | J34: 80.08936364 | K34: 0
A35: =A34 -> 2021-07-25 | B35: 544839 | C35: 544.839 | D35: 87 | E35: 2499 | F35: =SUM($K$3:K35) -> 11 | G35: 0.2271818182 | H35: 1.590272727 | I35: 6.929045455 | J35: 82.97815909 | K35: 0
A36: 2021-07-26 | B36: 544998 | C36: 544.998 | D36: 159 | E36: 2658 | F36: =SUM($K$3:K36) -> 12 | G36: 0.2215 | H36: 1.5505 | I36: 6.75575 | K36: 1
A37: =A36 -> 2021-07-26 | B37: 545038 | C37: 545.038 | D37: 40 | E37: 2698 | F37: =SUM($K$3:K37) -> 12 | G37: 0.2248333333 | H37: 1.573833333 | I37: 6.857416667 | J37: 82.120375 | K37: 0
A38: =A37 -> 2021-07-26 | B38: 545092 | C38: 545.092 | D38: 54 | E38: 2752 | F38: =SUM($K$3:K38) -> 12 | G38: 0.2293333333 | H38: 1.605333333 | I38: 6.994666667 | J38: 83.764 | K38: 0
A39: 2021-07-27 | B39: 545205 | C39: 545.205 | D39: 113 | E39: 2865 | F39: =SUM($K$3:K39) -> 13 | G39: 0.2203846154 | H39: 1.542692308 | I39: 6.721730769 | J39: 80.49548077 | K39: 1
A40: 2021-07-27 | B40: 545220 | C40: 545.22 | D40: 15 | E40: 2880 | F40: =SUM($K$3:K40) -> 13 | G40: 0.2215384615 | H40: 1.550769231 | I40: 6.756923077 | J40: 80.91692308 | K40: 0
A41: 2021-07-27 | B41: 545350 | C41: 545.35 | D41: 130 | E41: 3010 | F41: =SUM($K$3:K41) -> 13 | G41: 0.2315384615 | H41: 1.620769231 | I41: 7.061923077 | J41: 84.56942308 | K41: 0
A42: 2021-07-27 | B42: 545450 | C42: 545.45 | D42: 100 | E42: 3110 | F42: =SUM($K$3:K42) -> 13 | G42: 0.2392307692 | H42: 1.674615385 | I42: 7.296538462 | J42: 87.37903846 | K42: 0
A43: 2021-07-28 | B43: 545616 | C43: 545.616 | D43: 166 | E43: 3276 | F43: =SUM($K$3:K43) -> 14 | G43: 0.234 | H43: 1.638 | I43: 7.137 | J43: 85.4685 | K43: 1
A44: 2021-07-28 | B44: 545687 | C44: 545.687 | D44: 71 | E44: 3347 | F44: =SUM($K$3:K44) -> 14 | G44: 0.2390714286 | H44: 1.6735 | I44: 7.291678571 | J44: 87.32083929 | K44: 0
A45: 2021-07-29 | B45: 545693 | C45: 545.693 | D45: 6 | E45: 3353 | F45: =SUM($K$3:K45) -> 15 | G45: 0.2235333333 | H45: 1.564733333 | I45: 6.817766667 | J45: 81.64555 | K45: 1
A46: 2021-07-29 | B46: 545850 | C46: 545.85 | D46: 157 | E46: 3510 | F46: =SUM($K$3:K46) -> 15 | G46: 0.234 | H46: 1.638 | I46: 7.137 | J46: 85.4685 | K46: 0
A47: 2021-07-29 | B47: 545976 | C47: 545.976 | D47: 126 | E47: 3636 | F47: =SUM($K$3:K47) -> 15 | G47: 0.2424 | H47: 1.6968 | I47: 7.3932 | J47: 88.5366 | K47: 0
A48: 2021-07-30 | B48: 546065 | C48: 546.065 | D48: 89 | E48: 3725 | F48: =SUM($K$3:K48) -> 16 | G48: =(E48/F48)/1000 -> 0.2328125 | H48: 1.6296875 | I48: 7.10078125 | J48: 85.03476563 | K48: 1
A49: =A48 -> 2021-07-30 | B49: 546083 | C49: 546.083 | D49: 18 | E49: 3743 | F49: =SUM($K$3:K49) -> 16 | G49: 0.2339375 | H49: 1.6375625 | I49: 7.13509375 | J49: 85.44567188 | K49: 0
A50: 2021-07-30 | B50: 546170 | C50: =IF($A$50<>0,B50/1000,0) -> 546.17 | D50: =IF($A50<>0,B50-B49,0) -> 87 | E50: =IF(A50<>0,E49+D50,0) -> 3830 | F50: =IF(A50<>0,SUM($K$3:K50),0) -> 16 | G50: =IF(A50<>0,(E50/F50)/1000,0) -> 0.239375 | H50: =IF(A50<>0,G50*7,0) -> 1.675625 | I50: =IF(A50<>0,(G50*30.5),0) -> 7.3009375 | J50: 87.43171875 | K50: =IF(A50<>0,A50-A49,0) -> 0
A51: 2021-07-31 | B51: 546216 | C51: =IF(A51<>0,B51/1000,0) -> 546.216 | D51: =IF(A51<>0,B51-B50,0) -> 46 | E51: =IF(A51<>0,E50+D51,0) -> 3876 | F51: =IF(A51<>0,SUM($K$3:K51),0) -> 17 | G51: =IF(A51<>0,(E51/F51)/1000,0) -> 0.228 | H51: =IF(A51<>0,G51*7,0) -> 1.596 | I51: =IF(A51<>0,(G51*30.5),0) -> 6.954 | J51: 83.277 | K51: =IF(A51<>0,A51-A50,0) -> 1
A52: 2021-07-31 | B52: 546239 | C52: =IF(A52<>0,B52/1000,0) -> 546.239 | D52: =IF(A52<>0,B52-B51,0) -> 23 | E52: =IF(A52<>0,E51+D52,0) -> 3899 | F52: =IF(A52<>0,SUM($K$3:K52),0) -> 17 | G52: =IF(A52<>0,(E52/F52)/1000,0) -> 0.2293529412 | H52: =IF(A52<>0,G52*7,0) -> 1.605470588 | I52: =IF(A52<>0,(G52*30.5),0) -> 6.995264706 | J52: 83.77116176 | K52: =IF(A52<>0,A52-A51,0) -> 0
A53: 2021-07-31 | B53: 546315 | C53: 546.315 | D53: 76 | E53: 3975 | F53: =IF(A53<>0,SUM($K$3:K53),0) -> 17 | G53: 0.2338235294 | H53: 1.636764706 | I53: 7.131617647 | J53: 85.40404412 | K53: 0
A54: 2021-08-01 | B54: 546371 | C54: 546.371 | D54: 56 | E54: 4031 | F54: =IF(A54<>0,SUM($K$3:K54),0) -> 18 | G54: 0.2239444444 | H54: 1.567611111 | I54: 6.830305556 | J54: 81.79570833 | K54: 1
A55: 2021-08-01 | B55: 546561 | C55: 546.561 | D55: 190 | E55: 4221 | F55: =IF(A55<>0,SUM($K$3:K55),0) -> 18 | G55: 0.2345 | H55: 1.6415 | I55: 7.15225 | J55: 85.651125 | K55: 0
A56: 2021-08-01 | B56: 546645 | C56: 546.645 | D56: 84 | E56: 4305 | F56: =IF(A56<>0,SUM($K$3:K56),0) -> 18 | G56: 0.2391666667 | H56: 1.674166667 | I56: 7.294583333 | J56: 87.355625 | K56: 0
A57: 2021-08-02 | B57: 546772 | C57: 546.772 | D57: 127 | E57: 4432 | F57: =IF(A57<>0,SUM($K$3:K57),0) -> 19 | G57: 0.2332631579 | H57: 1.632842105 | I57: 7.114526316 | J57: 85.19936842 | K57: 1
A58: 2021-08-02 | B58: 546896 | C58: 546.896 | D58: 124 | E58: 4556 | F58: =IF(A58<>0,SUM($K$3:K58),0) -> 19 | G58: 0.2397894737 | H58: 1.678526316 | I58: 7.313578947 | J58: 87.58310526 | K58: 0
A59: 2021-08-03 | B59: 547223 | C59: 547.223 | D59: 327 | E59: 4883 | F59: =IF(A59<>0,SUM($K$3:K59),0) -> 20 | G59: 0.24415 | H59: 1.70905 | I59: 7.446575 | J59: 89.1757875 | K59: 1
A60: 2021-08-04 | B60: 547331 | C60: 547.331 | D60: 108 | E60: 4991 | F60: =IF(A60<>0,SUM($K$3:K60),0) -> 21 | G60: 0.2376666667 | H60: 1.663666667 | I60: 7.248833333 | J60: 86.80775 | K60: 1
A61: 2021-08-05 | B61: 547522 | C61: 547.522 | D61: 191 | E61: 5182 | F61: =IF(A61<>0,SUM($K$3:K61),0) -> 22 | G61: 0.2355454545 | H61: 1.648818182 | I61: 7.184136364 | J61: 86.03297727 | K61: 1
A62: 2021-08-06 | B62: 547770 | C62: 547.77 | D62: 248 | E62: 5430 | F62: =IF(A62<>0,SUM($K$3:K62),0) -> 23 | G62: 0.2360869565 | H62: 1.652608696 | I62: 7.200652174 | J62: 86.23076087 | K62: 1
A63: 2021-08-07 | B63: 548028 | C63: 548.028 | D63: 258 | E63: 5688 | F63: =IF(A63<>0,SUM($K$3:K63),0) -> 24 | G63: 0.237 | H63: 1.659 | I63: 7.2285 | J63: 86.56425 | K63: 1
A64: 2021-08-08 | B64: 548222 | C64: 548.222 | D64: 194 | E64: 5882 | F64: =IF(A64<>0,SUM($K$3:K64),0) -> 25 | G64: 0.23528 | H64: 1.64696 | I64: 7.17604 | J64: 85.93602 | K64: 1
A65: 2021-08-09 | B65: 548410 | C65: 548.41 | D65: 188 | E65: 6070 | F65: =IF(A65<>0,SUM($K$3:K65),0) -> 26 | G65: 0.2334615385 | H65: 1.634230769 | I65: 7.120576923 | J65: 85.27182692 | K65: 1
A66: 2021-08-10 | B66: 548700 | C66: 548.7 | D66: 290 | E66: 6360 | F66: =IF(A66<>0,SUM($K$3:K66),0) -> 27 | G66: 0.2355555556 | H66: 1.648888889 | I66: 7.184444444 | J66: 86.03666667 | K66: 1
A67: 2021-08-12 | B67: 549068 | C67: 549.068 | D67: 368 | E67: 6728 | F67: =IF(A67<>0,SUM($K$3:K67),0) -> 29 | G67: 0.232 | H67: 1.624 | I67: 7.076 | J67: 84.738 | K67: 2
A68: 2021-08-13 | B68: 549464 | C68: 549.464 | D68: 396 | E68: 7124 | F68: =IF(A68<>0,SUM($K$3:K68),0) -> 30 | G68: 0.2374666667 | H68: 1.662266667 | I68: 7.242733333 | J68: 86.7347 | K68: 1
A69: 2021-08-14 | B69: 549591 | C69: 549.591 | D69: 127 | E69: 7251 | F69: =IF(A69<>0,SUM($K$3:K69),0) -> 31 | G69: 0.2339032258 | H69: 1.637322581 | I69: 7.134048387 | J69: 85.43315323 | K69: 1
A70: 2021-08-15 | B70: 549916 | C70: 549.916 | D70: 325 | E70: 7576 | F70: =IF(A70<>0,SUM($K$3:K70),0) -> 32 | G70: 0.23675 | H70: 1.65725 | I70: 7.220875 | J70: 86.4729375 | K70: 1
A71: 2021-08-16 | B71: 550081 | C71: 550.081 | D71: 165 | E71: 7741 | F71: =IF(A71<>0,SUM($K$3:K71),0) -> 33 | G71: =IF(A71<>0,(E71/F71)/1000,0) -> 0.2345757576 | H71: 1.642030303 | I71: 7.154560606 | J71: 85.67879545 | K71: 1
A72: 2021-08-17 | B72: 550368 | C72: 550.368 | D72: 287 | E72: 8028 | F72: =IF(A72<>0,SUM($K$3:K72),0) -> 34 | G72: 0.2361176471 | H72: 1.652823529 | I72: 7.201588235 | J72: 86.24197059 | K72: 1
A73: 2021-08-18 | B73: 550607 | C73: 550.607 | D73: 239 | E73: 8267 | F73: =IF(A73<>0,SUM($K$3:K73),0) -> 35 | G73: 0.2362 | H73: 1.6534 | I73: 7.2041 | J73: 86.27205 | K73: 1
A74: 2021-08-18 | B74: 550611 | C74: 550.611 | D74: 4 | E74: 8271 | F74: =IF(A74<>0,SUM($K$3:K74),0) -> 35 | G74: 0.2363142857 | H74: 1.6542 | I74: 7.207585714 | J74: =G74*365.25 -> 86.31379286 | K74: 0
A75: 2021-08-19 | B75: 550636 | C75: 550.636 | D75: 25 | E75: 8296 | F75: =IF(A75<>0,SUM($K$3:K75),0) -> 36 | G75: 0.2304444444 | H75: 1.613111111 | I75: 7.028555556 | J75: 84.16983333 | K75: 1
A76: 2021-08-20 | B76: 551053 | C76: 551.053 | D76: 417 | E76: 8713 | F76: =IF(A76<>0,SUM($K$3:K76),0) -> 37 | G76: 0.2354864865 | H76: 1.648405405 | I76: 7.182337838 | J76: 86.01143919 | K76: 1
A77: 2021-08-20 | B77: 551071 | C77: 551.071 | D77: 18 | E77: 8731 | F77: =IF(A77<>0,SUM($K$3:K77),0) -> 37 | G77: 0.235972973 | H77: 1.651810811 | I77: 7.197175676 | J77: 86.18912838 | K77: 0
A78: 2021-08-20 | B78: 551140 | C78: 551.14 | D78: 69 | E78: 8800 | F78: =IF(A78<>0,SUM($K$3:K78),0) -> 37 | G78: 0.2378378378 | H78: 1.664864865 | I78: 7.254054054 | J78: 86.87027027 | K78: 0
A79: 2021-08-20 | B79: 551201 | C79: 551.201 | D79: 61 | E79: 8861 | F79: =IF(A79<>0,SUM($K$3:K79),0) -> 37 | G79: 0.2394864865 | H79: 1.676405405 | I79: 7.304337838 | J79: 87.47243919 | K79: 0
A80: 2021-08-21 | B80: 551350 | C80: 551.35 | D80: 149 | E80: 9010 | F80: =IF(A80<>0,SUM($K$3:K80),0) -> 38 | G80: 0.2371052632 | H80: 1.659736842 | I80: 7.231710526 | J80: 86.60269737 | K80: 1
A81: 2021-08-22 | B81: 551614 | C81: 551.614 | D81: 264 | E81: 9274 | F81: =IF(A81<>0,SUM($K$3:K81),0) -> 39 | G81: 0.2377948718 | H81: 1.664564103 | I81: 7.25274359 | J81: 86.85457692 | K81: 1
A82: 2021-08-23 | B82: 551843 | C82: 551.843 | D82: 229 | E82: 9503 | F82: =IF(A82<>0,SUM($K$3:K82),0) -> 40 | G82: 0.237575 | H82: 1.663025 | I82: 7.2460375 | J82: 86.77426875 | K82: 1
B83: =IF(A83<>0,,0) -> 0 | C83: 0 | D83: 0 | E83: 0 | F83: =IF(A83<>0,SUM($K$3:K83),0) -> 0 | G83: 0 | H83: 0 | I83: 0 | J83: 0 | K83: 0
B84: 0 | C84: 0 | D84: 0 | E84: 0 | F84: =IF(A84<>0,SUM($K$3:K84),0) -> 0 | G84: 0 | H84: 0 | I84: 0 | J84: 0 | K84: 0
B85: 0 | C85: 0 | D85: 0 | E85: 0 | F85: =IF(A85<>0,SUM($K$3:K85),0) -> 0 | G85: 0 | H85: 0 | I85: 0 | J85: 0 | K85: 0
B86: 0 | C86: 0 | D86: 0 | E86: 0 | F86: =IF(A86<>0,SUM($K$3:K86),0) -> 0 | G86: 0 | H86: 0 | I86: 0 | J86: 0 | K86: 0
B87: 0 | C87: 0 | D87: 0 | E87: 0 | F87: =IF(A87<>0,SUM($K$3:K87),0) -> 0 | G87: 0 | H87: 0 | I87: 0 | J87: 0 | K87: 0
B88: 0 | C88: 0 | D88: 0 | E88: 0 | F88: =IF(A88<>0,SUM($K$3:K88),0) -> 0 | G88: 0 | H88: 0 | I88: 0 | J88: 0 | K88: 0
B89: 0 | C89: 0 | D89: 0 | E89: 0 | F89: =IF(A89<>0,SUM($K$3:K89),0) -> 0 | G89: 0 | H89: 0 | I89: 0 | J89: 0 | K89: 0
B90: 0 | C90: 0 | D90: 0 | E90: 0 | F90: =IF(A90<>0,SUM($K$3:K90),0) -> 0 | G90: 0 | H90: 0 | I90: 0 | J90: 0 | K90: 0
B91: 0 | C91: 0 | D91: 0 | E91: 0 | F91: =IF(A91<>0,SUM($K$3:K91),0) -> 0 | G91: 0 | H91: 0 | I91: 0 | J91: 0 | K91: 0
B92: 0 | C92: 0 | D92: 0 | E92: 0 | F92: =IF(A92<>0,SUM($K$3:K92),0) -> 0 | G92: 0 | H92: 0 | I92: 0 | J92: 0 | K92: 0
B93: 0 | C93: 0 | D93: 0 | E93: 0 | F93: =IF(A93<>0,SUM($K$3:K93),0) -> 0 | G93: 0 | H93: 0 | I93: 0 | J93: 0 | K93: 0
B94: 0 | C94: 0 | D94: 0 | E94: 0 | F94: =IF(A94<>0,SUM($K$3:K94),0) -> 0 | G94: 0 | H94: 0 | I94: 0 | J94: 0 | K94: 0
B95: 0 | C95: 0 | D95: 0 | E95: 0 | F95: =IF(A95<>0,SUM($K$3:K95),0) -> 0 | G95: 0 | H95: 0 | I95: 0 | J95: 0 | K95: 0
B96: 0 | C96: 0 | D96: 0 | E96: 0 | F96: =IF(A96<>0,SUM($K$3:K96),0) -> 0 | G96: 0 | H96: 0 | I96: 0 | J96: 0 | K96: 0
B97: 0 | C97: 0 | D97: 0 | E97: 0 | F97: =IF(A97<>0,SUM($K$3:K97),0) -> 0 | G97: 0 | H97: 0 | I97: 0 | J97: 0 | K97: 0
B98: 0 | C98: 0 | D98: 0 | E98: 0 | F98: =IF(A98<>0,SUM($K$3:K98),0) -> 0 | G98: 0 | H98: 0 | I98: 0 | J98: 0 | K98: 0
B99: 0 | C99: 0 | D99: 0 | E99: 0 | F99: =IF(A99<>0,SUM($K$3:K99),0) -> 0 | G99: 0 | H99: 0 | I99: 0 | J99: 0 | K99: 0
B100: 0 | C100: 0 | D100: 0 | E100: 0 | F100: =IF(A100<>0,SUM($K$3:K100),0) -> 0 | G100: 0 | H100: 0 | I100: 0 | J100: 0 | K100: 0
B101: 0 | C101: 0 | D101: 0 | E101: 0 | F101: =IF(A101<>0,SUM($K$3:K101),0) -> 0 | G101: 0 | H101: 0 | I101: 0 | J101: 0 | K101: 0
B102: 0 | C102: 0 | D102: 0 | E102: 0 | F102: =IF(A102<>0,SUM($K$3:K102),0) -> 0 | G102: 0 | H102: 0 | I102: 0 | J102: 0 | K102: 0
B103: 0 | C103: 0 | D103: 0 | E103: 0 | F103: =IF(A103<>0,SUM($K$3:K103),0) -> 0 | G103: 0 | H103: 0 | I103: 0 | J103: 0 | K103: 0
B104: 0 | C104: 0 | D104: 0 | E104: 0 | F104: =IF(A104<>0,SUM($K$3:K104),0) -> 0 | G104: 0 | H104: 0 | I104: 0 | J104: 0 | K104: 0
B105: 0 | C105: 0 | D105: 0 | E105: 0 | F105: =IF(A105<>0,SUM($K$3:K105),0) -> 0 | G105: 0 | H105: 0 | I105: 0 | J105: 0 | K105: 0
B106: 0 | C106: 0 | D106: 0 | E106: 0 | F106: =IF(A106<>0,SUM($K$3:K106),0) -> 0 | G106: 0 | H106: 0 | I106: 0 | J106: 0 | K106: 0
B107: 0 | C107: 0 | D107: 0 | E107: 0 | F107: =IF(A107<>0,SUM($K$3:K107),0) -> 0 | G107: 0 | H107: 0 | I107: 0 | J107: 0 | K107: 0
B108: 0 | C108: 0 | D108: 0 | E108: 0 | F108: =IF(A108<>0,SUM($K$3:K108),0) -> 0 | G108: 0 | H108: 0 | I108: 0 | J108: 0 | K108: 0
B109: 0 | C109: 0 | D109: 0 | E109: 0 | F109: =IF(A109<>0,SUM($K$3:K109),0) -> 0 | G109: 0 | H109: 0 | I109: 0 | J109: 0 | K109: 0
B110: 0 | C110: 0 | D110: 0 | E110: 0 | F110: =IF(A110<>0,SUM($K$3:K110),0) -> 0 | G110: 0 | H110: 0 | I110: 0 | J110: 0 | K110: 0
B111: 0 | C111: 0 | D111: 0 | E111: 0 | F111: =IF(A111<>0,SUM($K$3:K111),0) -> 0 | G111: 0 | H111: 0 | I111: 0 | J111: 0 | K111: 0
B112: 0 | C112: 0 | D112: 0 | E112: 0 | F112: =IF(A112<>0,SUM($K$3:K112),0) -> 0 | G112: 0 | H112: 0 | I112: 0 | J112: 0 | K112: 0
B113: 0 | C113: 0 | D113: 0 | E113: 0 | F113: =IF(A113<>0,SUM($K$3:K113),0) -> 0 | G113: 0 | H113: 0 | I113: 0 | J113: 0 | K113: 0
B114: 0 | C114: 0 | D114: 0 | E114: 0 | F114: =IF(A114<>0,SUM($K$3:K114),0) -> 0 | G114: 0 | H114: 0 | I114: 0 | J114: 0 | K114: 0
B115: 0 | C115: 0 | D115: 0 | E115: 0 | F115: =IF(A115<>0,SUM($K$3:K115),0) -> 0 | G115: 0 | H115: 0 | I115: 0 | J115: 0 | K115: 0
B116: =IF(A116<>0,,0) -> 0 | C116: =IF(A116<>0,B116/1000,0) -> 0 | D116: =IF(A116<>0,B116-B115,0) -> 0 | E116: =IF(A116<>0,E115+D116,0) -> 0 | F116: =IF(A116<>0,SUM($K$3:K116),0) -> 0 | G116: =IF(A116<>0,(E116/F116)/1000,0) -> 0 | H116: =IF(A116<>0,G116*7,0) -> 0 | I116: =IF(A116<>0,(G116*30.5),0) -> 0 | J116: 0 | K116: =IF(A116<>0,A116-A115,0) -> 0
B117: 0 | C117: 0 | D117: 0 | E117: 0 | F117: =IF(A117<>0,SUM($K$3:K117),0) -> 0 | G117: 0 | H117: 0 | I117: 0 | J117: 0 | K117: 0
B118: 0 | C118: 0 | D118: 0 | E118: 0 | F118: =IF(A118<>0,SUM($K$3:K118),0) -> 0 | G118: 0 | H118: 0 | I118: 0 | J118: 0 | K118: 0
B119: 0 | C119: 0 | D119: 0 | E119: 0 | F119: =IF(A119<>0,SUM($K$3:K119),0) -> 0 | G119: 0 | H119: 0 | I119: 0 | J119: 0 | K119: 0
B120: 0 | C120: 0 | D120: 0 | E120: 0 | F120: =IF(A120<>0,SUM($K$3:K120),0) -> 0 | G120: 0 | H120: 0 | I120: 0 | J120: 0 | K120: 0
B121: 0 | C121: 0 | D121: 0 | E121: 0 | F121: =IF(A121<>0,SUM($K$3:K121),0) -> 0 | G121: 0 | H121: 0 | I121: 0 | J121: 0 | K121: 0
B122: 0 | C122: 0 | D122: 0 | E122: 0 | F122: =IF(A122<>0,SUM($K$3:K122),0) -> 0 | G122: 0 | H122: 0 | I122: 0 | J122: 0 | K122: 0
B123: 0 | C123: 0 | D123: 0 | E123: 0 | F123: =IF(A123<>0,SUM($K$3:K123),0) -> 0 | G123: 0 | H123: 0 | I123: 0 | J123: 0 | K123: 0
B124: 0 | C124: 0 | D124: 0 | E124: 0 | F124: =IF(A124<>0,SUM($K$3:K124),0) -> 0 | G124: 0 | H124: 0 | I124: 0 | J124: 0 | K124: 0
B125: 0 | C125: 0 | D125: 0 | E125: 0 | F125: =IF(A125<>0,SUM($K$3:K125),0) -> 0 | G125: 0 | H125: 0 | I125: 0 | J125: 0 | K125: 0
B126: 0 | C126: 0 | D126: 0 | E126: 0 | F126: =IF(A126<>0,SUM($K$3:K126),0) -> 0 | G126: 0 | H126: 0 | I126: 0 | J126: 0 | K126: 0
B127: 0 | C127: 0 | D127: 0 | E127: 0 | F127: =IF(A127<>0,SUM($K$3:K127),0) -> 0 | G127: 0 | H127: 0 | I127: 0 | J127: 0 | K127: 0
B128: 0 | C128: 0 | D128: 0 | E128: 0 | F128: =IF(A128<>0,SUM($K$3:K128),0) -> 0 | G128: 0 | H128: 0 | I128: 0 | J128: 0 | K128: 0
B129: 0 | C129: 0 | D129: 0 | E129: 0 | F129: =IF(A129<>0,SUM($K$3:K129),0) -> 0 | G129: 0 | H129: 0 | I129: 0 | J129: 0 | K129: 0
B130: 0 | C130: 0 | D130: 0 | E130: 0 | F130: =IF(A130<>0,SUM($K$3:K130),0) -> 0 | G130: 0 | H130: 0 | I130: 0 | J130: 0 | K130: 0
B131: 0 | C131: 0 | D131: 0 | E131: 0 | F131: =IF(A131<>0,SUM($K$3:K131),0) -> 0 | G131: 0 | H131: 0 | I131: 0 | J131: 0 | K131: 0
B132: 0 | C132: 0 | D132: 0 | E132: 0 | F132: =IF(A132<>0,SUM($K$3:K132),0) -> 0 | G132: 0 | H132: 0 | I132: 0 | J132: 0 | K132: 0
B133: 0 | C133: 0 | D133: 0 | E133: 0 | F133: =IF(A133<>0,SUM($K$3:K133),0) -> 0 | G133: 0 | H133: 0 | I133: 0 | J133: 0 | K133: 0
B134: 0 | C134: 0 | D134: 0 | E134: 0 | F134: =IF(A134<>0,SUM($K$3:K134),0) -> 0 | G134: 0 | H134: 0 | I134: 0 | J134: 0 | K134: 0
B135: 0 | C135: 0 | D135: 0 | E135: 0 | F135: =IF(A135<>0,SUM($K$3:K135),0) -> 0 | G135: 0 | H135: 0 | I135: 0 | J135: 0 | K135: 0
B136: 0 | C136: 0 | D136: 0 | E136: 0 | F136: =IF(A136<>0,SUM($K$3:K136),0) -> 0 | G136: 0 | H136: 0 | I136: 0 | J136: 0 | K136: 0
B137: 0 | C137: 0 | D137: 0 | E137: 0 | F137: =IF(A137<>0,SUM($K$3:K137),0) -> 0 | G137: 0 | H137: 0 | I137: 0 | J137: 0 | K137: 0
B138: 0 | C138: 0 | D138: 0 | E138: 0 | F138: =IF(A138<>0,SUM($K$3:K138),0) -> 0 | G138: 0 | H138: 0 | I138: 0 | J138: =G138*365.25 -> 0 | K138: 0
B139: 0 | C139: 0 | D139: 0 | E139: 0 | F139: =IF(A139<>0,SUM($K$3:K139),0) -> 0 | G139: 0 | H139: 0 | I139: 0 | J139: 0 | K139: 0
B140: 0 | C140: 0 | D140: 0 | E140: 0 | F140: =IF(A140<>0,SUM($K$3:K140),0) -> 0 | G140: 0 | H140: 0 | I140: 0 | J140: 0 | K140: 0
B141: 0 | C141: 0 | D141: 0 | E141: 0 | F141: =IF(A141<>0,SUM($K$3:K141),0) -> 0 | G141: 0 | H141: 0 | I141: 0 | J141: 0 | K141: 0
B142: 0 | C142: 0 | D142: 0 | E142: 0 | F142: =IF(A142<>0,SUM($K$3:K142),0) -> 0 | G142: 0 | H142: 0 | I142: 0 | J142: 0 | K142: 0
B143: 0 | C143: 0 | D143: 0 | E143: 0 | F143: =IF(A143<>0,SUM($K$3:K143),0) -> 0 | G143: 0 | H143: 0 | I143: 0 | J143: 0 | K143: 0
B144: 0 | C144: 0 | D144: 0 | E144: 0 | F144: =IF(A144<>0,SUM($K$3:K144),0) -> 0 | G144: 0 | H144: 0 | I144: 0 | J144: 0 | K144: 0
B145: 0 | C145: 0 | D145: 0 | E145: 0 | F145: =IF(A145<>0,SUM($K$3:K145),0) -> 0 | G145: 0 | H145: 0 | I145: 0 | J145: 0 | K145: 0
B146: 0 | C146: 0 | D146: 0 | E146: 0 | F146: =IF(A146<>0,SUM($K$3:K146),0) -> 0 | G146: 0 | H146: 0 | I146: 0 | J146: 0 | K146: 0
B147: 0 | C147: 0 | D147: 0 | E147: 0 | F147: =IF(A147<>0,SUM($K$3:K147),0) -> 0 | G147: 0 | H147: 0 | I147: 0 | J147: 0 | K147: 0
B148: 0 | C148: 0 | D148: 0 | E148: 0 | F148: =IF(A148<>0,SUM($K$3:K148),0) -> 0 | G148: 0 | H148: 0 | I148: 0 | J148: 0 | K148: 0
B149: 0 | C149: 0 | D149: 0 | E149: 0 | F149: =IF(A149<>0,SUM($K$3:K149),0) -> 0 | G149: 0 | H149: 0 | I149: 0 | J149: 0 | K149: 0
B150: 0 | C150: 0 | D150: 0 | E150: 0 | F150: =IF(A150<>0,SUM($K$3:K150),0) -> 0 | G150: 0 | H150: 0 | I150: 0 | J150: 0 | K150: 0
B151: 0 | C151: 0 | D151: 0 | E151: 0 | F151: =IF(A151<>0,SUM($K$3:K151),0) -> 0 | G151: 0 | H151: 0 | I151: 0 | J151: 0 | K151: 0
B152: 0 | C152: 0 | D152: 0 | E152: 0 | F152: =IF(A152<>0,SUM($K$3:K152),0) -> 0 | G152: 0 | H152: 0 | I152: 0 | J152: 0 | K152: 0
B153: 0 | C153: 0 | D153: 0 | E153: 0 | F153: =IF(A153<>0,SUM($K$3:K153),0) -> 0 | G153: 0 | H153: 0 | I153: 0 | J153: 0 | K153: 0
B154: 0 | C154: 0 | D154: 0 | E154: 0 | F154: =IF(A154<>0,SUM($K$3:K154),0) -> 0 | G154: 0 | H154: 0 | I154: 0 | J154: 0 | K154: 0
B155: 0 | C155: 0 | D155: 0 | E155: 0 | F155: =IF(A155<>0,SUM($K$3:K155),0) -> 0 | G155: 0 | H155: 0 | I155: 0 | J155: 0 | K155: 0
B156: 0 | C156: 0 | D156: 0 | E156: 0 | F156: =IF(A156<>0,SUM($K$3:K156),0) -> 0 | G156: 0 | H156: 0 | I156: 0 | J156: 0 | K156: 0
B157: 0 | C157: 0 | D157: 0 | E157: 0 | F157: =IF(A157<>0,SUM($K$3:K157),0) -> 0 | G157: 0 | H157: 0 | I157: 0 | J157: 0 | K157: 0
B158: 0 | C158: 0 | D158: 0 | E158: 0 | F158: =IF(A158<>0,SUM($K$3:K158),0) -> 0 | G158: 0 | H158: 0 | I158: 0 | J158: 0 | K158: 0
B159: 0 | C159: 0 | D159: 0 | E159: 0 | F159: =IF(A159<>0,SUM($K$3:K159),0) -> 0 | G159: 0 | H159: 0 | I159: 0 | J159: 0 | K159: 0
B160: 0 | C160: 0 | D160: 0 | E160: 0 | F160: =IF(A160<>0,SUM($K$3:K160),0) -> 0 | G160: 0 | H160: 0 | I160: 0 | J160: 0 | K160: 0
B161: 0 | C161: 0 | D161: 0 | E161: 0 | F161: =IF(A161<>0,SUM($K$3:K161),0) -> 0 | G161: 0 | H161: 0 | I161: 0 | J161: 0 | K161: 0
B162: 0 | C162: 0 | D162: 0 | E162: 0 | F162: =IF(A162<>0,SUM($K$3:K162),0) -> 0 | G162: 0 | H162: 0 | I162: 0 | J162: 0 | K162: 0
B163: 0 | C163: 0 | D163: 0 | E163: 0 | F163: =IF(A163<>0,SUM($K$3:K163),0) -> 0 | G163: 0 | H163: 0 | I163: 0 | J163: 0 | K163: 0
B164: 0 | C164: 0 | D164: 0 | E164: 0 | F164: =IF(A164<>0,SUM($K$3:K164),0) -> 0 | G164: 0 | H164: 0 | I164: 0 | J164: 0 | K164: 0
B165: 0 | C165: 0 | D165: 0 | E165: 0 | F165: =IF(A165<>0,SUM($K$3:K165),0) -> 0 | G165: 0 | H165: 0 | I165: 0 | J165: 0 | K165: 0
B166: 0 | C166: 0 | D166: 0 | E166: 0 | F166: =IF(A166<>0,SUM($K$3:K166),0) -> 0 | G166: 0 | H166: 0 | I166: 0 | J166: 0 | K166: 0
B167: 0 | C167: 0 | D167: 0 | E167: 0 | F167: =IF(A167<>0,SUM($K$3:K167),0) -> 0 | G167: 0 | H167: 0 | I167: 0 | J167: 0 | K167: 0
B168: 0 | C168: 0 | D168: 0 | E168: 0 | F168: =IF(A168<>0,SUM($K$3:K168),0) -> 0 | G168: 0 | H168: 0 | I168: 0 | J168: 0 | K168: 0
B169: 0 | C169: 0 | D169: 0 | E169: 0 | F169: =IF(A169<>0,SUM($K$3:K169),0) -> 0 | G169: 0 | H169: 0 | I169: 0 | J169: 0 | K169: 0
B170: 0 | C170: 0 | D170: 0 | E170: 0 | F170: =IF(A170<>0,SUM($K$3:K170),0) -> 0 | G170: 0 | H170: 0 | I170: 0 | J170: 0 | K170: 0
B171: 0 | C171: 0 | D171: 0 | E171: 0 | F171: =IF(A171<>0,SUM($K$3:K171),0) -> 0 | G171: 0 | H171: 0 | I171: 0 | J171: 0 | K171: 0
B172: 0 | C172: 0 | D172: 0 | E172: 0 | F172: =IF(A172<>0,SUM($K$3:K172),0) -> 0 | G172: 0 | H172: 0 | I172: 0 | J172: 0 | K172: 0
B173: 0 | C173: 0 | D173: 0 | E173: 0 | F173: =IF(A173<>0,SUM($K$3:K173),0) -> 0 | G173: 0 | H173: 0 | I173: 0 | J173: 0 | K173: 0
B174: 0 | C174: 0 | D174: 0 | E174: 0 | F174: =IF(A174<>0,SUM($K$3:K174),0) -> 0 | G174: 0 | H174: 0 | I174: 0 | J174: 0 | K174: 0
B175: 0 | C175: 0 | D175: 0 | E175: 0 | F175: =IF(A175<>0,SUM($K$3:K175),0) -> 0 | G175: 0 | H175: 0 | I175: 0 | J175: 0 | K175: 0
B176: 0 | C176: 0 | D176: 0 | E176: 0 | F176: =IF(A176<>0,SUM($K$3:K176),0) -> 0 | G176: 0 | H176: 0 | I176: 0 | J176: 0 | K176: 0
B177: 0 | C177: 0 | D177: 0 | E177: 0 | F177: =IF(A177<>0,SUM($K$3:K177),0) -> 0 | G177: 0 | H177: 0 | I177: 0 | J177: 0 | K177: 0
B178: 0 | C178: 0 | D178: 0 | E178: 0 | F178: =IF(A178<>0,SUM($K$3:K178),0) -> 0 | G178: 0 | H178: 0 | I178: 0 | J178: 0 | K178: 0
B179: 0 | C179: 0 | D179: 0 | E179: 0 | F179: =IF(A179<>0,SUM($K$3:K179),0) -> 0 | G179: 0 | H179: 0 | I179: 0 | J179: 0 | K179: 0
B180: =IF(A180<>0,,0) -> 0 | C180: =IF(A180<>0,B180/1000,0) -> 0 | D180: =IF(A180<>0,B180-B179,0) -> 0 | E180: =IF(A180<>0,E179+D180,0) -> 0 | F180: =IF(A180<>0,SUM($K$3:K180),0) -> 0 | G180: =IF(A180<>0,(E180/F180)/1000,0) -> 0 | H180: =IF(A180<>0,G180*7,0) -> 0 | I180: =IF(A180<>0,(G180*30.5),0) -> 0 | J180: 0 | K180: =IF(A180<>0,A180-A179,0) -> 0
B181: 0 | C181: 0 | D181: 0 | E181: 0 | F181: =IF(A181<>0,SUM($K$3:K181),0) -> 0 | G181: 0 | H181: 0 | I181: 0 | J181: 0 | K181: 0
B182: 0 | C182: 0 | D182: 0 | E182: 0 | F182: =IF(A182<>0,SUM($K$3:K182),0) -> 0 | G182: 0 | H182: 0 | I182: 0 | J182: 0 | K182: 0
B183: 0 | C183: 0 | D183: 0 | E183: 0 | F183: =IF(A183<>0,SUM($K$3:K183),0) -> 0 | G183: 0 | H183: 0 | I183: 0 | J183: 0 | K183: 0
B184: 0 | C184: 0 | D184: 0 | E184: 0 | F184: =IF(A184<>0,SUM($K$3:K184),0) -> 0 | G184: 0 | H184: 0 | I184: 0 | J184: 0 | K184: 0
B185: 0 | C185: 0 | D185: 0 | E185: 0 | F185: =IF(A185<>0,SUM($K$3:K185),0) -> 0 | G185: 0 | H185: 0 | I185: 0 | J185: 0 | K185: 0
B186: 0 | C186: 0 | D186: 0 | E186: 0 | F186: =IF(A186<>0,SUM($K$3:K186),0) -> 0 | G186: 0 | H186: 0 | I186: 0 | J186: 0 | K186: 0
B187: 0 | C187: 0 | D187: 0 | E187: 0 | F187: =IF(A187<>0,SUM($K$3:K187),0) -> 0 | G187: 0 | H187: 0 | I187: 0 | J187: 0 | K187: 0
B188: 0 | C188: 0 | D188: 0 | E188: 0 | F188: =IF(A188<>0,SUM($K$3:K188),0) -> 0 | G188: 0 | H188: 0 | I188: 0 | J188: 0 | K188: 0
B189: 0 | C189: 0 | D189: 0 | E189: 0 | F189: =IF(A189<>0,SUM($K$3:K189),0) -> 0 | G189: 0 | H189: 0 | I189: 0 | J189: 0 | K189: 0
B190: 0 | C190: 0 | D190: 0 | E190: 0 | F190: =IF(A190<>0,SUM($K$3:K190),0) -> 0 | G190: 0 | H190: 0 | I190: 0 | J190: 0 | K190: 0
B191: 0 | C191: 0 | D191: 0 | E191: 0 | F191: =IF(A191<>0,SUM($K$3:K191),0) -> 0 | G191: 0 | H191: 0 | I191: 0 | J191: 0 | K191: 0
B192: 0 | C192: 0 | D192: 0 | E192: 0 | F192: =IF(A192<>0,SUM($K$3:K192),0) -> 0 | G192: 0 | H192: 0 | I192: 0 | J192: 0 | K192: 0
B193: 0 | C193: 0 | D193: 0 | E193: 0 | F193: =IF(A193<>0,SUM($K$3:K193),0) -> 0 | G193: 0 | H193: 0 | I193: 0 | J193: 0 | K193: 0
B194: 0 | C194: 0 | D194: 0 | E194: 0 | F194: =IF(A194<>0,SUM($K$3:K194),0) -> 0 | G194: 0 | H194: 0 | I194: 0 | J194: 0 | K194: 0
B195: 0 | C195: 0 | D195: 0 | E195: 0 | F195: =IF(A195<>0,SUM($K$3:K195),0) -> 0 | G195: 0 | H195: 0 | I195: 0 | J195: 0 | K195: 0
B196: 0 | C196: 0 | D196: 0 | E196: 0 | F196: =IF(A196<>0,SUM($K$3:K196),0) -> 0 | G196: 0 | H196: 0 | I196: 0 | J196: 0 | K196: 0
B197: 0 | C197: 0 | D197: 0 | E197: 0 | F197: =IF(A197<>0,SUM($K$3:K197),0) -> 0 | G197: 0 | H197: 0 | I197: 0 | J197: 0 | K197: 0
B198: 0 | C198: 0 | D198: 0 | E198: 0 | F198: =IF(A198<>0,SUM($K$3:K198),0) -> 0 | G198: 0 | H198: 0 | I198: 0 | J198: 0 | K198: 0
B199: 0 | C199: 0 | D199: 0 | E199: 0 | F199: =IF(A199<>0,SUM($K$3:K199),0) -> 0 | G199: 0 | H199: 0 | I199: 0 | J199: 0 | K199: 0
B200: 0 | C200: 0 | D200: 0 | E200: 0 | F200: =IF(A200<>0,SUM($K$3:K200),0) -> 0 | G200: 0 | H200: 0 | I200: 0 | J200: 0 | K200: 0
... 1401 more rows

Sheet standaarden
C2: klein toilet | E2: 3 liter
C3: groot toilet | E3: 7 liter
C5: douchen Henk | E5: 23 liter
C6: douchen Ans | E6: 23,5 liter
C9: wasmachine | D9: 75gr
D10: kort
